Cogmind - Beta 14 @@@ ROGUE MODE // 2025.03.21 @ 12:43:02 Player: rinsethewax Result: Self-destructed Performance ------------- Evolutions (2) 1000 Regions Visited (5) 1000 Robots Destroyed (19) 95 Value Destroyed (624) 624 Prototype IDs (0) 0 Alien Tech Used (0) 0 Bonus (0) 0 TOTAL SCORE: 2719 Bonus ------- None Cogmind --------- Core Integrity 481/550 Matter 192/300 Energy 92/100 System Corruption 0% Temperature Cool (0) Movement Treading (160) Location -8/Materials Parts ------- > --- POWER (3) -------- (None) > --- PROPULSION (2) --- Light Treads > --- UTILITY (3) ------ Small Storage Unit Improved Signal Interpreter > --- WEAPON (3) ------- (None) > --- INVENTORY (8) ---- Cesium-ion Thruster Cesium-ion Thruster Hardened Light Armor Plating Hardened Light Armor Plating Peak State ------------ > --- POWER ------------ Light Angular Momentum Engine > --- PROPULSION ------- Aluminum Leg Aluminum Leg > --- UTILITY ---------- Small Storage Unit Hardened Light Armor Plating > --- WEAPON ----------- Medium Laser Beamcaster Datajack > --- INVENTORY -------- Small Battery Hardened Light Armor Plating Hardened Light Armor Plating Assault Rifle Light Assault Rifle Light Assault Rifle Plasma Cutter [Rating: 18] Favorites ----------- Power Light Ion Engine Engine Light Ion Engine Propulsion Aluminum Leg Treads Light Treads Leg Aluminum Leg Flight Unit Cesium-ion Thruster Utility Small Storage Unit Device Improved Heat Sink Storage Small Storage Unit Processor Improved Signal Interpreter Protection Hardened Light Armor Plating Weapon Medium Laser Energy Gun Medium Laser Ballistic Gun Assault Rifle Launcher EMP Blaster Special Weapon Plasma Cutter Special Melee Weapon Datajack Build | -11 -10 -10 -9 -9 -8 ------- Run | Yrd Mat Min Mat Sto Mat Slots Evolved 4 | . . . 2 . 2 Power 2 | . . . 1 . 1 Propulsion . | . . . . . . Utility 1 | . . . . . 1 Weapon 1 | . . . 1 . . Parts Attached 42 | 6 1 5 6 15 9 Power 6 | 1 . 2 2 1 . Engine 6 | 1 . 2 2 1 . Core . | . . . . . . Reactor . | . . . . . . Propulsion 18 | 2 . 2 2 6 6 Treads 10 | . . . 2 4 4 Leg 5 | 2 . 1 . 2 . Wheel . | . . . . . . Hover . | . . . . . . Flight 3 | . . 1 . . 2 Utility 5 | 1 1 . . 2 1 Device 1 | . . . . 1 . Storage 1 | 1 . . . . . Processor 1 | . . . . . 1 Hackware . | . . . . . . Protection 2 | . 1 . . 1 . Artifact . | . . . . . . Weapon 13 | 2 . 1 2 6 2 Energy Gun 4 | 2 . 1 . 1 . Energy Cannon . | . . . . . . Ballistic Gun 6 | . . . 1 4 1 Ballistic Cannon . | . . . . . . Launcher 1 | . . . . 1 . Special Weapon 1 | . . . . . 1 Impact Weapon . | . . . . . . Slashing Weapon . | . . . . . . Piercing Weapon . | . . . . . . Special Melee Weapon 1 | . . . 1 . . Unidentified Prototypes . | . . . . . . Corrupted Parts 4 | . . . . 4 . System Corruption 26 | . . . . 26 . Parts Lost 15 | . . . . 10 5 Power 2 | . . . . 2 . Propulsion 5 | . . . . 4 1 Utility 2 | . . . . 1 1 Weapon 6 | . . . . 3 3 Highest Loss Streak 5 | . . . . 4 5 To Critical Strikes . | . . . . . . Average Slot Usage (%) 86 | . 99 100 83 85 54 Engine 12 | . 14 14 9 16 . Treads 6 | . . . 1 11 15 Leg 16 | . 28 28 21 8 . Device 1 | . . . . 1 9 Storage 11 | . 14 14 11 11 9 Protection 9 | . 13 14 11 8 . Energy Gun 15 | . 28 28 22 6 . Ballistic Gun 8 | . . . 6 15 15 Launcher 2 | . . . . 5 . Peak Build Rating 18 | 6 8 17 18 16 12 Average Rating 11 | 3 7 9 14 12 10 On Entrance 9 | . 6 8 17 16 8 Naked Turns . | . . . . . . Heaviest Build 31 | 12 17 26 31 31 8 Greatest Support 40 | 20 20 20 40 40 40 Greatest Overweight (x) 5 | . . 4 1 5 2 Average Overweight (x) . | . . . . . . Largest Inventory Capacity 8 | 8 8 8 8 8 8 Average Capacity 7 | 6 8 8 8 8 8 Most Carried 8 | 5 5 8 8 8 8 Average Carried 6 | 1 4 7 6 7 4 Final Capacity 8 | 8 8 8 8 8 8 Final Carried 8 | 1 5 8 8 3 4 Class Distribution -------------------- 48% | Mutant 21% | Tank 18% | Scavenger-Mutant 9% | Scavenger-Tank Dominant Class ---------------- Mutant | -10/Materials Mutant | -10/Mines Tank | -9/Materials Tank | -9/Storage Scavenger-Mutant | -8/Materials Resources | -11 -10 -10 -9 -9 -8 ----------- Run | Yrd Mat Min Mat Sto Mat Matter Collected 738 | 201 . 107 112 318 . Remotely . | . . . . . . Salvage Created 755 | . . 43 150 562 . Parts 53 | . . 7 9 37 . Haulers Intercepted . | . . . . . . Recyclers Shooed . | . . . . . . Parts Field Recycled . | . . . . . . Retrieved Matter . | . . . . . . Parts Self-Destructed . | . . . . . . Prevented . | . . . . . . Kills | -11 -10 -10 -9 -9 -8 ------- Run | Yrd Mat Min Mat Sto Mat Combat Hostiles Destroyed 19 | . . 3 3 13 . Guns 16 | . . 3 3 10 . AOE 3 | . . . . 3 . Classes Destroyed 3 | . . 1 2 . . Swarmer 6 | . . 3 . 3 . Grunt 4 | . . . 1 3 . Sentry 9 | . . . 2 7 . Best Kill Streak 4 | . . 3 1 4 . Combat Bots Only 4 | . . 3 1 4 . Max Kills in Single Turn 1 | . . 1 1 1 . Gunslinging . | . . . . . . Exploded 1 | . . . . 1 . Melee . | . . . . . . Uniques/NPCs Destroyed . | . . . . . . Combat | -11 -10 -10 -9 -9 -8 -------- Run | Yrd Mat Min Mat Sto Mat Hostile Shots Fired 209 | . 2 15 44 112 36 Missed 61 | . . 5 16 31 9 Damage Taken 2074 | . 22 142 365 1167 378 Core 377 | . 11 51 43 203 69 Absorbed by Shields . | . . . . . . Regen/Repaired (Parts) 160 | . . . . 160 . Core Remaining (%) 71 | 100 . 75 . 38 . Volleys Fired 108 | . 6 9 21 57 15 Largest 3 | . 2 2 2 3 2 Hottest 125 | . 100 100 125 76 40 Shots Fired 156 | . 12 18 27 81 18 Gun 142 | . 12 18 27 70 15 Cannon . | . . . . . . Launcher 11 | . . . . 11 . Special 3 | . . . . . 3 Kinetic 99 | . . . 14 70 15 Thermal 46 | . 12 18 13 . 3 Explosive . | . . . . . . Electromagnetic 11 | . . . . 11 . Robot Hit Streak 13 | . 1 13 6 10 5 Robot Miss Streak 5 | . 5 1 2 5 2 Penetration Max . | . . . . . . Secondary Targets . | . . . . . . Shots Hit Robots 100 | . 3 15 17 52 13 Core Hits 37 | . . 4 7 24 2 Critical Kills . | . . . . . . Critical Parts Destroyed 1 | . . . . 1 . Critical Strikes 2 | . 1 . . 1 . Burn 1 | . 1 . . . . Destroy 1 | . . . . 1 . Melee Attacks . | . . . . . . Impact . | . . . . . . Slashing . | . . . . . . Piercing . | . . . . . . Sneak Attacks . | . . . . . . Combat Hostiles . | . . . . . . Follow-up Attacks . | . . . . . . Damage Inflicted 1386 | . 48 194 269 785 90 Guns 1119 | . 38 188 269 567 57 Cannons . | . . . . . . Explosions 218 | . . . . 218 . Melee . | . . . . . . Ramming 16 | . 10 6 . . . Kinetic 721 | . . . 97 567 57 Thermal 469 | . 38 188 172 38 33 Explosive . | . . . . . . Electromagnetic 180 | . . . . 180 . Impact . | . . . . . . Slashing . | . . . . . . Piercing . | . . . . . . Highest Corruption 27 | . . . . 27 . Average Corruption 24 | . . . . 24 . Corruption Purged . | . . . . . . Corruption Blocked . | . . . . . . Effects 14 | . . . . 14 . Message Errors 2 | . . . . 2 . Matter Fused 1 | . . . . 1 . Heat Flow Errors 2 | . . . . 2 . Energy Discharges 2 | . . . . 2 . Parts Rejected 1 | . . . . 1 . Data Loss (minor) 3 | . . . . 3 . Weapon Failures 3 | . . . . 3 . Overload Shots . | . . . . . . Overflow Damage 12 | . . . . 12 . Projectiles . | . . . . . . Explosions 12 | . . . . 12 . Melee . | . . . . . . Knockbacks 1 | . 1 . . . . Impact 1 | . 1 . . . . Kinetic . | . . . . . . Secondary . | . . . . . . Self-Inflicted Damage 200 | . . . . 200 . Shots 10 | . . . . 10 . Rammed . | . . . . . . Targets Rammed 3 | . 1 2 . . . Kicked 3 | . 1 2 . . . Crushed . | . . . . . . Highest Temperature 349 | . 162 270 349 148 . Average Temperature 91 | . 61 124 168 45 . Received Heat Transfer 600 | . 12 36 171 381 . Effects 1 | . . . 1 . . Interference 1 | . . . 1 . . Siege Activations . | . . . . . . Robots Corrupted . | . . . . . . Combat Hostiles . | . . . . . . Parts Fried . | . . . . . . Impact Corruptions . | . . . . . . Robots Melted . | . . . . . . Combat Hostiles . | . . . . . . Parts Melted 2 | . . 2 . . . Heat Transferred 1271 | . 185 555 370 50 111 Parts Sabotaged . | . . . . . . Parts Stolen . | . . . . . . Parts Stripped . | . . . . . . Power Chain Reactions 2 | . . . . 2 . Alert | -11 -10 -10 -9 -9 -8 ------- Run | Yrd Mat Min Mat Sto Mat Peak Influence 243 | . 15 90 142 243 33 Initial 33 | . . 5 . . 33 Average 83 | . 5 64 51 146 29 Maximum Alert Level 1 | . . . . 1 . Low Security (%) 84 | 100 100 100 100 58 100 Level 1 15 | . . . . 41 . Level 2 . | . . . . . . Level 3 . | . . . . . . Level 4 . | . . . . . . Level 5 . | . . . . . . High Security . | . . . . . . Max Security . | . . . . . . Squads Dispatched 2 | . 2 . . . . Investigation . | . . . . . . Extermination . | . . . . . . Reinforcement 2 | . 2 . . . . Assault . | . . . . . . Garrison . | . . . . . . Intercept . | . . . . . . Searches Triggered . | . . . . . . Construction Impeded . | . . . . . . Haulers Reinforced . | . . . . . . Active Scanning Responses . | . . . . . . Cargo Convoy Interrupts . | . . . . . . Stealth | -11 -10 -10 -9 -9 -8 --------- Run | Yrd Mat Min Mat Sto Mat Distress Signals 3 | . . . 1 2 . Communications Jammed . | . . . . . . Distress Signals . | . . . . . . Times Spotted 31 | . 6 5 5 14 1 Peak Tracking Total 4 | . 3 3 3 4 1 Tactical Retreats 4 | . . . 1 3 . Traps | -11 -10 -10 -9 -9 -8 ------- Run | Yrd Mat Min Mat Sto Mat Traps Triggered 2 | . . . . . 2 Indirectly . | . . . . . . Trap Hack Attempts . | . . . . . . Triggered . | . . . . . . Disarmed . | . . . . . . Reprogrammed . | . . . . . . Reused . | . . . . . . Traps Extracted . | . . . . . . Installed . | . . . . . . Triggered . | . . . . . . Machines | -11 -10 -10 -9 -9 -8 ---------- Run | Yrd Mat Min Mat Sto Mat Machines Disabled 1 | . . . . 1 . Max in Single Turn 1 | . . . . 1 . Machines Repaired . | . . . . . . Machines Dismantled . | . . . . . . Machines Sabotaged . | . . . . . . Overloaded Fab Kills . | . . . . . . Hacking | -11 -10 -10 -9 -9 -8 --------- Run | Yrd Mat Min Mat Sto Mat Machines Accessed 8 | . 2 . 3 3 . Terminals 6 | . 2 . 2 2 . Fabricators . | . . . . . . Repair Stations 2 | . . . 1 1 . Recycling Units . | . . . . . . Scanalyzers . | . . . . . . Garrison Access . | . . . . . . Total Hacks 17 | . 4 . 6 7 . Successful 8 | . . . 3 5 . Failed 9 | . 4 . 3 2 . Catastrophic 1 | . . . 1 . . Database Lockouts . | . . . . . . Manual 2 | . . . 2 . . Terminals 12 | . 4 . 4 4 . Fabricators . | . . . . . . Repair Stations 5 | . . . 2 3 . Recycling Units . | . . . . . . Scanalyzers . | . . . . . . Garrison Access . | . . . . . . Terminal Hacks 5 | . . . 2 3 . Record 1 | . . . . 1 . Open Door 1 | . . . . 1 . Emergency Access Points 1 | . . . . 1 . Dispatch Records 1 | . . . 1 . . Transport Status 1 | . . . 1 . . Fabricator Hacks . | . . . . . . Repair Station Hacks 3 | . . . 1 2 . Scan Component 2 | . . . 1 1 . Repair 1 | . . . . 1 . Recycling Unit Hacks . | . . . . . . Scanalyzer . | . . . . . . Garrison Access Hacks . | . . . . . . Unauthorized Hacks . | . . . . . . Terminals . | . . . . . . Fabricators . | . . . . . . Repair Stations . | . . . . . . Recycling Units . | . . . . . . Scanalyzers . | . . . . . . Garrison Access . | . . . . . . Data Cores Recovered . | . . . . . . Used . | . . . . . . Hacking Detections 8 | . 2 . 4 2 . Full Trace Events . | . . . . . . Feedback Events . | . . . . . . Feedback Blocked . | . . . . . . Robot Schematics Acquired . | . . . . . . Robots Built . | . . . . . . Authchips . | . . . . . . Time . | . . . . . . Total Robot Build Rating . | . . . . . . Part Schematics Acquired . | . . . . . . Parts Built . | . . . . . . Authchips . | . . . . . . Time . | . . . . . . Total Part Build Rating . | . . . . . . Parts Repaired 1 | . . . . 1 . Time 32 | . . . . 32 . Parts Recycled . | . . . . . . Recycled Matter . | . . . . . . Retrieved Matter . | . . . . . . Retrieved Components . | . . . . . . Parts Scanalyzed . | . . . . . . Part Schematics Acquired . | . . . . . . Parts Damaged . | . . . . . . Bothacking | -11 -10 -10 -9 -9 -8 ------------ Run | Yrd Mat Min Mat Sto Mat Used RIF Installer . | . . . . . . Robots Hacked . | . . . . . . Non-combat . | . . . . . . Combat . | . . . . . . Robot Hacks Applied . | . . . . . . Relay Couplers Released . | . . . . . . Fabnet Peak Effective % . | . . . . . . Robots Rewired . | . . . . . . Allies Hacked . | . . . . . . Hacks Repelled . | . . . . . . Allies | -11 -10 -10 -9 -9 -8 -------- Run | Yrd Mat Min Mat Sto Mat Total Allies . | . . . . . . Largest Group . | . . . . . . Highest-Rated Group . | . . . . . . Highest-Rated Ally . | . . . . . . Total Orders . | . . . . . . Ally Attacks . | . . . . . . Total Damage . | . . . . . . Kills . | . . . . . . Allies Corrupted . | . . . . . . Allies Melted . | . . . . . . Intel | -11 -10 -10 -9 -9 -8 ------- Run | Yrd Mat Min Mat Sto Mat Robot Analysis Total . | . . . . . . Derelict Logs Recovered . | . . . . . . Drone Launches . | . . . . . . Drone Recoveries . | . . . . . . Exploration | -11 -10 -10 -9 -9 -8 ------------- Run | Yrd Mat Min Mat Sto Mat Turns Passed 2106 | 48 189 427 441 808 193 Spaces Moved 1086 | 37 137 306 193 336 77 Core 26 | 12 . . . 3 11 Treads 253 | . . . 13 174 66 Legs 805 | 25 137 304 180 159 . Wheels . | . . . . . . Hover . | . . . . . . Flight 2 | . . 2 . . . Fastest Speed 50 | 50 120 120 120 160 150 Average Speed 152 | 97 120 126 178 179 158 Slowest Speed 370 | 120 120 370 240 300 160 Overloaded Moves . | . . . . . . Propulsion Burnouts . | . . . . . . Robots Hopped . | . . . . . . Cave-ins Triggered . | . . . . . . Exploration Rate (%) 28 | 4 27 66 21 43 8 Regions Visited 5 Branch Regions 2 Pre-discovered Areas . | . . . . . . Known Exits Taken . | . . . . . . Unknown Exits Taken 5 | 1 1 1 1 1 . Scrap Searched 2 | . . 2 . . . Spaces Dug . | . . . . . . Terrain Destroyed 7 | . . . . 7 . Melee . | . . . . . . Projectile . | . . . . . . AOE 7 | . . . . 7 . Terrain Rammed . | . . . . . . Walls Destroyed . | . . . . . . Machines Disabled . | . . . . . . Actions | -11 -10 -10 -9 -9 -8 --------- Run | Yrd Mat Min Mat Sto Mat Total 1380 | 49 149 329 262 464 127 Wait 106 | . . . 37 49 20 Move 1081 | 36 136 305 192 335 77 Hop . | . . . . . . Pick Up 28 | 7 5 4 4 2 6 Fast Attach 8 | . . 1 . 7 . Attach 21 | 6 1 . 4 5 5 Detach . | . . . . . . Swap 13 | . . 4 2 3 4 Drop 12 | . . 4 2 6 . Fire 108 | . 6 9 21 57 15 Melee . | . . . . . . Ram . | . . . . . . Kick 3 | . 1 2 . . . Crush . | . . . . . . Escape Stasis . | . . . . . . Rewire . | . . . . . . Trap . | . . . . . . Miscellaneous . | . . . . . . Route ------- -11/Scrapyard -10/Materials -10/Mines -9/Materials (discovered 2 exits: [*Mat] / *Sto) -9/Storage -8/Materials History --------- Turn | Location | Event 5 | -11/Scrapyard | Discovered new exit (range 15) 49 | -11/Scrapyard | Entered Materials 220 | -10/Materials | Discovered new exit (range 16) 238 | -10/Materials | Entered Mines 331 | -10/Mines | Build established: Mutant 597 | -10/Mines | Discovered new exit (range 12) 608 | -10/Mines | Joined a pair of Derelicts in attacking an 0b10 outpost 665 | -10/Mines | Entered Materials 665 | -9/Materials | Evolved 2 slots: Power x1, Weapon x1 1025 | -9/Materials | Discovered new exit (range 8) 1046 | -9/Materials | Discovered new exit (range 10) 1106 | -9/Materials | Entered Storage 1229 | -9/Storage | Repaired Hrd. Light Armor Plating 1712 | -9/Storage | System corruption reached 10% 1731 | -9/Storage | Lost 3 parts (2p1n) 1780 | -9/Storage | Core integrity fell below 50% 1826 | -9/Storage | Lost 4 parts (2n1u1w) 1905 | -9/Storage | Discovered new exit (range 5) 1914 | -9/Storage | Entered Materials 1914 | -8/Materials | Evolved 2 slots: Power x1, Utility x1 2107 | -8/Materials | Self-destructed Last Messages --------------- Slug penetrates Wall. K-01 Serf collects debris. Penetrated by Slug. K-01 Serf collects debris. Penetrated by Slug. K-01 Serf collects debris. Penetrated by Slug. Lgt. Assault Rifle destroyed. K-01 Serf collects debris. Penetrated by Slug. Slug penetrates Wall. Lgt. Treads destroyed. K-01 Serf collects debris. Penetrated by Slug. K-01 Serf collects debris. Penetrated by Slug. Plasma Cutter destroyed. K-01 Serf collects debris. Slug penetrates Wall. Imp. Heat Sink destroyed. Map ----- +----------------------------------------------------+ | ?????????????????????????????????????????????????? | | ?????????????????????????????????????????????????? | | ?????????????????????????????????????????????????? | | ?????????????????????????????????????????????????? | | ?????????????????????????????????????????????????? | | ?????????????????????????????????????????????????? | | ?????????????????????????????????????????????????? | | ?????????????????????????????????????????????????? | | ?????????????????????????????????????????????????? | | ?????????????? ????????????????????????????????? | | ?????????????# ????????????????????????????????? | | ?????????????# ????????????????????????????????? | | ?????????????# ????????????????????????????????? | | ?????????????# ????????????????????????????????? | | ?????????????# ????????????????????????????????? | | ?????????????# ????????????????????????????????? | | ?????????????# +???????????????????????????????? | | ?????????????# #???????????????????????????????? | | ?????????????# #???????????????????????????????? | | ?????????????# #???????????????????????????????? | | ?????????????# ##############??????????????????? | | ?????????????# # """"" = #??????????????????? | | ?????????????# # """" k #??????????????????? | | ?????????????+ + "" #??????????????????? | | ?????????????# # #??????????????????? | | ?????????????# # h @ #??????????????????? | | ?????????????# ##############??????????????????? | | ?????????????# #????????????????????????? | | ?????????????# #????????????????????????? | | ?????????????# ^^#????????????????????????? | | ?????????????######## ^##########???????????????? | | ??????????????####### # #???????????????? | | ????#######???#"""""# # """ #???????????????? | | ????# #####""T""# # """ #???????????????? | | ????# ! = # ! """ #???????????????? | | ????# ] ! + #???????????????? | | ????# # """ #???????????????? | | ????# / #### # """ #???????????????? | | ????## ###"" """ # """ #???????????????? | | ?????# #?#"Y """ # #???????????????? | | ?????# #?#"" """ ##########???????????????? | | ?????# #?### ???????????????????????? | | ?????# #???# ###??????????????????????? | | ?????# #???# #????????????????????????? | | ?????# #???#########+##????????????????????????? | | ?????#####???????????????????????????????????????? | | ?????????????????????????????????????????????????? | | ?????????????????????????????????????????????????? | | ?????????????????????????????????????????????????? | | ?????????????????????????????????????????????????? | +----------------------------------------------------+ Best States ------------- Heat Dissipation 45 Energy Generation 18 Energy Capacity 415 Matter Stores 300 Matter Capacity 300 Sight Range 16 Terrain Scan Density 10 Armor Coverage 150 Evasion (%) 55 Recoil Reduction 2 Item Schematics ----------------- None Robot Schematics ------------------ None Fabricated ------------ Nothing Alien Tech Used ----------------- None Achievements -------------- Let's See Who's Tougher Challenges ------------ None Game ------ Seed WarlordSigixPlatform Manual? 0 Play Time 00:33:52 Cumulative 2.3 hours Start 2025.03.21 @ 12:08:49 End 2025.03.21 @ 12:43:02 Sessions 1 Manual Loads 0 Difficulty Rogue Special Mode None Game No. 3 Rogue 3 Adventurer 0 Explorer 0 Win Type - Total 0 Types 0/0/0/0/0/0/0/0/0 Lore% 0 Gallery% 5 Achievement% 5 Wizard Run 0 Options --------- Layout 0 ASCII 1 Keyboard 0 Movement Mouse Keybinds 0 Fullscreen 0 Font 32/SmallcapsGlow Map View 76x50 Zoom Use 0% Tactical HUD 0 Map Filters NONE Filters NONE Steam 1 RUN: e26705d2-d833-4d3d-8636-e4edaa61dd95